bitfinex/quotes_ETHUSD_20220308
["timestamp","ask_amount","ask_price","bid_price","bid_amount"]
[1646772819990,3.54954525,2563.5,2563.0,1.59593717]
[1646772819991,0.97591,2563.3,2563.0,1.59593717]
[1646772820192,3.22774,2563.3,2563.0,1.59593717]
[1646772820396,2.92765,2563.8,2563.0,2.22222192]
[1646772820596,11.10635,2564.1,2563.1,3.5]
[1646772820799,11.10635,2564.1,2563.0,0.72628475]
[1646772820800,6.95805,2564.1,2563.0,0.72628475]
[1646772821202,0.97555,2564.0,2563.5,0.84438041]
[1646772821600,1.9511,2564.0,2563.5,0.84438041]
[1646772821998,2.2511,2564.0,2563.5,0.84438041]
[1646772822199,2.2511,2564.0,2563.6,0.00374931]
[1646772823443,2.2511,2564.0,2563.7,0.00374928]
[1646772824039,0.70585412,2563.9,2563.7,0.00374928]
[1646772824239,0.9757578,2563.9,2563.7,0.00374928]
[1646772824441,2.2511,2564.0,2563.7,0.00374928]
[1646772824639,2.2511,2564.0,2563.7,0.00374925]
[1646772825440,0.84949026,2563.9,2563.7,0.00374925]
[1646772825640,0.89576935,2563.9,2563.7,0.00374925]
[1646772825841,0.89576935,2563.9,2563.7,0.00351026]
[1646772826190,2.25147,2563.8,2563.7,0.00351026]
[1646772826794,0.97579,2563.6,2563.0,0.85683039]
[1646772826994,0.97576,2563.4,2563.0,0.85683039]
[1646772827195,0.04627909,2563.9,2563.2,0.72628475]
[1646772827397,0.04627909,2563.9,2563.0,0.85683039]
[1646772827594,0.04627909,2563.9,2563.4,0.72628475]
[1646772827994,0.04627909,2563.9,2563.6,0.73387711]
[1646772828197,0.9756,2563.8,2563.4,0.72628475]
[1646772829098,0.04627909,2563.9,2563.6,0.72628475]
[1646772829696,0.04627909,2563.9,2563.7,0.72628475]
[1646772830150,0.04825215,2563.8,2563.7,0.72628475]
[1646772830748,0.04825215,2563.8,2563.7,0.72983347]
[1646772831553,0.04825215,2563.8,2563.7,0.00354872]
[1646772831754,0.97571,2563.7,2563.6,0.00354875]
[1646772831952,1.99967215,2563.8,2563.6,0.00354875]
[1646772832352,2.29967215,2563.8,2563.6,0.00354875]
[1646772832753,1.99967215,2563.8,2563.2,0.71000615]
[1646772832956,2.97535215,2563.8,2563.2,0.71000615]
[1646772833153,2.97535215,2563.8,2563.6,0.00354877]
[1646772833354,3.27535215,2563.8,2563.6,0.00354877]
[1646772834097,3.27535215,2563.8,2563.2,0.71000615]
[1646772834294,3.27535215,2563.8,2563.6,0.00347944]
[1646772834295,0.9757,2563.7,2563.6,0.00347944]
[1646772835094,0.34825215,2563.8,2563.6,1.50385556]
[1646772835492,0.34825215,2563.8,2563.6,1.50037612]
[1646772835493,0.04825215,2563.8,2563.6,1.50037612]
[1646772835694,0.04825215,2563.8,2563.6,0.77409137]
[1646772835892,0.04825215,2563.8,2563.5,0.00130824]
[1646772836296,1.99961215,2563.8,2563.4,0.71000615]
[1646772836497,2.97523215,2563.8,2563.2,0.71000615]
[1646772836700,2.97523215,2563.8,2563.5,0.00325732]
[1646772836997,0.97562,2563.7,2563.5,0.00325732]
[1646772837452,2.54861209,2563.8,2563.5,0.00325732]
[1646772837639,0.9758565,2563.7,2563.5,0.00325732]
[1646772837838,2.24861209,2563.8,2563.5,0.00344344]
[1646772838643,0.97562,2563.7,2563.5,0.00344344]
[1646772839043,0.59725209,2563.8,2563.5,0.00688685]
[1646772839250,0.32413968,2563.8,2563.5,0.00344341]
[1646772839445,0.02413968,2563.8,2563.5,0.00344341]
[1646772839843,0.02413968,2563.8,2563.6,0.77267834]
[1646772840445,0.02413968,2563.8,2563.7,1.59561711]
[1646772840643,1.97408008,2564.0,2563.7,1.59561711]
[1646772841391,2.27408008,2564.0,2563.7,1.59886674]
[1646772841992,1.97408008,2564.0,2563.8,0.72628475]
[1646772842195,1.97408008,2564.0,2563.9,1.59561711]
[1646772842396,0.02303008,2564.0,2563.9,1.59561711]
[1646772842997,0.02303008,2564.0,2563.9,5.80562326]
[1646772843196,0.02303008,2564.0,2563.9,3.30562326]
[1646772843694,0.02303008,2564.0,2563.9,17.60562326]
[1646772843695,3.008e-05,2564.0,2563.9,17.60562326]
[1646772843895,3.008e-05,2564.0,2563.9,19.46142326]
[1646772844101,3.008e-05,2564.0,2563.9,18.75141711]
[1646772844801,3.008e-05,2564.0,2563.9,3.06361711]
[1646772845071,3.008e-05,2564.0,2563.9,2.06361711]
[1646772845267,3.008e-05,2564.0,2563.9,1.59561711]
[1646772845667,0.88072531,2564.5,2563.8,0.72760733]
[1646772845668,0.90936154,2564.5,2563.8,0.72760733]
[1646772845870,0.02863623,2564.5,2563.9,1.59561711]
[1646772846068,0.97544,2564.2,2564.0,1.59561711]
[1646772846269,0.3,2564.3,2564.1,1.59561711]
[1646772846471,0.02863623,2564.5,2564.2,1.59561711]
[1646772846767,0.02863623,2564.5,2564.3,1.59561711]
[1646772846974,0.02863623,2564.5,2564.1,1.59561711]
[1646772847167,0.02863623,2564.5,2564.0,0.72628475]
[1646772847168,1.00397623,2564.5,2564.2,1.59561711]
[1646772847369,1.00397623,2564.5,2564.4,0.7184877]
[1646772847570,1.30397623,2564.5,2564.4,2.31410481]
[1646772848268,1.30397623,2564.5,2564.4,1.59561711]
[1646772848899,0.32863623,2564.5,2564.4,0.72628475]
[1646772849104,0.32863623,2564.5,2564.2,1.59561711]
[1646772849401,0.02863623,2564.5,2564.3,1.59561711]
[1646772849607,0.02863623,2564.5,2564.0,0.00366445]
[1646772850003,0.02863623,2564.5,2564.0,0.00732882]
[1646772850204,0.02601671,2564.3,2564.1,1.59557229]
[1646772850407,1.00148671,2564.3,2564.2,1.59557229]
[1646772850602,1.30148671,2564.3,2564.2,1.59557229]
[1646772850803,1.30148671,2564.3,2564.0,1.59923666]
[1646772851003,1.30148671,2564.3,2564.0,1.59557229]
[1646772851206,1.30148671,2564.3,2564.1,1.59557229]
[1646772851504,1.30148671,2564.3,2564.2,1.59557229]
[1646772851704,1.30148671,2564.3,2563.9,2.32185704]
[1646772851905,0.32601671,2564.3,2564.2,0.82648741]
[1646772852109,0.02601671,2564.3,2564.2,0.82648741]
[1646772852307,0.02601671,2564.3,2564.2,2.4220597]
[1646772854350,0.02601671,2564.3,2564.2,1.59557229]
[1646772854755,0.02601671,2564.3,2564.0,1.60249569]
[1646772854950,0.02601671,2564.3,2564.1,1.59557229]
[1646772855151,0.02712168,2564.3,2564.2,1.59557229]
[1646772855349,0.02712168,2564.3,2564.0,1.59903399]
[1646772855953,0.02712168,2564.3,2564.0,1.59899448]
[1646772856225,0.02712168,2564.3,2564.1,0.72628475]
[1646772856417,0.02712168,2564.3,2564.2,1.59557229]
[1646772857420,0.02710417,2564.5,2564.4,0.04981814]
[1646772857618,0.02710417,2564.5,2564.4,1.64539043]
[1646772857817,0.02710417,2564.5,2564.0,0.00319271]
[1646772858418,0.02710417,2564.5,2564.0,0.00638558]
[1646772858617,0.02710417,2564.5,2564.0,0.00319287]
[1646772859018,1.9511,2564.4,2564.0,0.00319287]
[1646772859218,1.9511,2564.4,2563.7,1.47102899]
[1646772859419,0.97556,2564.2,2563.7,1.47102899]
[1646772859620,0.97556,2564.2,2564.0,0.00327115]
[1646772860248,2.9267,2564.2,2564.0,0.00327115]
[1646772860450,1.02751566,2564.3,2563.8,4.21468249]
[1646772860653,0.05197566,2564.3,2564.1,0.72628475]
[1646772861550,0.05197566,2564.3,2564.0,0.0034059]
[1646772862249,0.05197566,2564.3,2564.0,0.00340598]
[1646772863250,0.05197566,2564.3,2564.0,0.00353614]
[1646772864498,0.05197566,2564.3,2564.0,0.00340488]
[1646772865102,0.05197566,2564.3,2564.1,0.72628475]
[1646772865502,0.05197566,2564.3,2564.2,1.162]
[1646772866306,0.05197566,2564.3,2564.2,2.00075895]
[1646772867205,0.05197566,2564.3,2564.2,1.162]
[1646772870471,0.05197566,2564.3,2564.0,0.00336008]
[1646772870472,1.95126,2564.2,2564.0,0.00336008]
[1646772870869,1.95126,2564.2,2564.1,1.162]
[1646772872403,2.30325566,2564.3,2564.1,1.162]
[1646772872404,0.05197566,2564.3,2564.1,1.162]
[1646772872604,0.05197566,2564.3,2564.2,0.72628475]
[1646772873706,0.05197566,2564.3,2564.0,1.89181867]
[1646772874105,0.05197566,2564.3,2564.0,1.1655225]
[1646772874504,0.72513666,2564.3,2564.0,1.1655225]
[1646772874704,0.97548,2564.2,2564.0,1.1655225]
[1646772874946,0.97548,2564.2,2564.0,1.162]
[1646772875145,1.27548,2564.2,2564.0,1.162]
[1646772875347,0.97548,2564.2,2564.0,1.16551105]
[1646772875554,1.02104192,2564.2,2564.1,0.72628475]
[1646772875952,0.04556192,2564.2,2564.1,0.72628475]
[1646772877352,0.97551,2564.4,2564.2,0.08360337]
[1646772877953,0.97551,2564.4,2564.3,1.59540268]
[1646772878256,0.97551,2564.4,2564.3,2.32168743]
[1646772878899,0.97551,2564.4,2564.3,3.02529815]
[1646772879100,0.3,2564.5,2564.3,3.02529815]
[1646772879301,0.3,2564.5,2564.4,5.09540268]
[1646772879503,0.3,2564.7,2564.4,1.59540268]
[1646772879901,0.97521,2565.0,2564.6,0.72628475]
[1646772880101,0.97521,2565.0,2564.7,1.59540268]
[1646772880303,0.97521,2565.0,2563.7,5.07548]
[1646772880304,3.5,2564.9,2563.7,5.07548]
[1646772880508,5.5,2564.5,2563.3,1.82101729]
[1646772880708,0.01281872,2564.0,2563.5,0.71555768]
[1646772880908,0.01281872,2564.0,2563.3,0.71555768]
[1646772881110,0.01281872,2564.0,2563.0,0.71555768]
[1646772881111,3.0,2563.7,2563.0,0.71555768]
[1646772881311,3.0,2563.7,2562.8,0.71555768]
[1646772881312,0.76736425,2563.2,2562.8,0.71555768]
[1646772881509,0.76736425,2563.2,2562.5,4.1343]
[1646772881510,0.76736425,2563.2,2562.7,0.71555768]
[1646772881709,0.76736425,2563.2,2562.6,0.71555768]
[1646772881908,1.06736425,2563.2,2562.5,0.71555768]
[1646772882108,2.43129425,2563.2,2562.5,0.71555768]
[1646772882309,2.73129425,2563.2,2562.5,0.71555768]
[1646772882550,1.95252,2562.9,2562.5,0.71555768]
[1646772882750,0.97628,2562.8,2562.3,0.71555768]
[1646772882948,0.97628,2562.8,2562.2,0.71555768]
[1646772883150,6.42882,2562.7,2562.2,0.71555768]
[1646772883349,7.02882,2562.7,2562.2,0.71555768]
[1646772883554,1.95261,2562.6,2562.1,0.71555768]
[1646772883750,1.95261,2562.6,2562.0,0.71555768]
[1646772883751,2.25261,2562.6,2562.0,0.71555768]
[1646772883951,3.2288985,2562.6,2562.2,0.71555768]
[1646772884152,0.97628,2562.5,2562.2,0.71555768]
[1646772884352,0.97628,2562.5,2562.1,0.71555768]
[1646772884753,0.75887057,2562.4,2562.0,0.71555768]
[1646772884955,2.71140057,2562.4,2562.2,0.00374542]
[1646772885154,1.95253,2562.4,2562.2,0.00374542]
[1646772885556,5.45253,2562.4,2562.2,0.00374542]
[1646772885755,1.95253,2562.4,2561.9,0.71555768]
[1646772885956,1.95263,2562.2,2561.8,0.73054162]
[1646772886215,0.97631,2562.1,2561.8,0.72977931]
[1646772887008,0.97607,2562.7,2561.9,0.71555768]
[1646772887208,0.97607,2562.7,2562.0,0.71555768]
[1646772887407,1.95211,2562.7,2562.1,0.71555768]
[1646772887614,1.95208,2563.0,2562.1,1.10335768]
[1646772887807,1.95208,2563.0,2562.1,0.71555768]
[1646772887808,0.68452592,2562.6,2562.1,0.71555768]
[1646772888009,0.68452592,2562.6,2562.0,0.71555768]
[1646772888010,1.66067592,2562.6,2562.0,0.71555768]
[1646772888211,1.66067592,2562.6,2561.9,0.71555768]
[1646772888410,1.66067592,2562.6,2561.8,0.71555768]
[1646772888612,1.66067592,2562.6,2562.4,0.00355474]
[1646772889009,3.5,2562.5,2562.4,0.00355474]
[1646772889314,4.47614,2562.5,2562.4,0.00355474]
[1646772889510,4.47614,2562.5,2561.6,0.71555768]
[1646772889709,1.95265,2562.3,2562.0,0.01496979]
[1646772889951,0.02140558,2562.1,2562.0,0.01496979]
[1646772890954,0.02140558,2562.1,2561.7,0.71555768]
[1646772891151,0.02140558,2562.1,2561.9,0.00374216]
[1646772892358,3.52140558,2562.1,2561.9,0.00374219]
[1646772892559,0.9765,2562.0,2561.9,0.00374219]
[1646772892757,1.2765,2562.0,2561.5,0.01497101]
[1646772892958,2.92999,2561.9,2561.5,0.01497101]
[1646772893358,3.61779,2561.9,2560.9,2.3649]
[1646772893557,1.95336,2561.7,2560.9,2.3649]
[1646772893801,2.25336,2561.7,2560.8,0.84463024]
[1646772894002,1.9533,2561.5,2560.8,0.84463024]
[1646772894201,0.97666,2561.4,2560.8,0.84463024]
[1646772894398,0.97666,2561.4,2560.7,0.71555768]
[1646772894600,1.27666,2561.4,2560.7,0.71555768]
[1646772894799,1.27666,2561.4,2560.6,0.71555768]
[1646772895001,0.97666,2561.4,2560.5,0.71555768]
[1646772895199,1.27666,2561.4,2560.5,0.71555768]
[1646772895603,0.89159087,2561.2,2560.6,0.71555768]
[1646772895805,0.89159087,2561.2,2560.3,1.81156238]
[1646772895806,0.97667,2561.1,2560.5,0.71555768]
[1646772896107,0.3,2561.4,2560.6,1.10335768]
[1646772896308,0.3,2561.4,2560.7,1.10335768]
[1646772896512,0.3,2561.4,2560.8,1.10335768]
[1646772896708,6.0374,2561.8,2560.8,1.10335768]
[1646772896907,6.6374,2561.8,2561.1,0.84744098]
[1646772897109,2.553,2561.8,2561.1,0.84744098]
[1646772897546,0.84978315,2561.8,2561.1,0.84744098]
[1646772898151,0.97646,2561.6,2561.3,0.0037264]
[1646772900257,0.02037073,2562.0,2561.2,0.3878]
[1646772900455,6.9361206,2562.4,2561.4,0.3878]
[1646772900456,3.5,2562.4,2561.4,0.3878]
[1646772900655,0.97623,2562.3,2561.5,2.45247141]
[1646772900855,0.97623,2562.3,2561.6,1.59667141]
[1646772901054,0.97623,2562.3,2561.8,0.66223256]
[1646772901509,0.97623,2562.3,2561.9,1.59667141]
[1646772902111,3.20079,2562.8,2561.9,1.59667141]
[1646772903209,4.17688,2562.8,2561.9,1.59667141]
[1646772903410,4.47688,2562.8,2561.9,1.59667141]
[1646772903610,3.5,2562.7,2561.9,1.59667141]
[1646772903812,3.8,2562.7,2561.9,1.59667141]
[1646772904212,4.1878,2562.7,2561.9,1.59667141]
[1646772904414,4.1878,2562.7,2561.8,0.01801742]
[1646772904611,6.7285256,2562.7,2561.9,1.59649436]
[1646772904950,1.27619,2562.6,2561.9,1.59649436]
[1646772905149,0.6,2562.6,2561.9,1.59649436]
[1646772905349,0.97612,2562.5,2561.9,2.32060138]
[1646772905548,0.97612,2562.5,2562.0,1.59649436]
[1646772905954,0.02396869,2562.2,2562.0,1.59649436]
[1646772907759,0.02396869,2562.2,2562.0,1.98429436]
[1646772907957,0.02396869,2562.2,2562.1,2.45229436]
[1646772908157,0.02396869,2562.2,2562.1,14.25229436]
[1646772908459,0.02397177,2562.3,2562.2,5.8878]
[1646772908715,0.02397177,2562.3,2562.2,8.90229436]
[1646772909704,0.02397177,2562.3,2562.2,8.51449436]
[1646772909907,0.02397177,2562.3,2562.2,1.59649436]
[1646772910706,0.02397177,2562.3,2562.1,0.13819997]
[1646772910908,0.02397177,2562.3,2562.2,1.59643858]
[1646772911311,0.02397177,2562.3,2562.1,0.13819997]
[1646772911518,0.02397177,2562.3,2561.5,0.70639692]
[1646772911712,0.02397177,2562.3,2561.6,1.59659514]
[1646772912313,1.00016177,2562.3,2561.6,1.59659514]
[1646772912756,0.97628,2562.1,2561.8,0.0036621]
[1646772912957,0.3,2562.2,2561.8,0.0036621]
[1646772913155,0.02397177,2562.3,2561.8,0.0036621]
[1646772913456,0.02397177,2562.3,2561.9,0.3878]
[1646772913656,0.02397177,2562.3,2562.0,1.59659514]
[1646772913858,0.02397177,2562.3,2561.8,0.4716621]
[1646772913859,0.02397177,2562.3,2561.9,1.59659514]
[1646772914059,0.02397177,2562.3,2562.0,1.59659514]
[1646772914259,0.02397177,2562.3,2562.1,1.59659514]
[1646772914463,1.00017177,2562.3,2561.8,0.00366214]
[1646772914860,1.30017177,2562.3,2561.8,0.00366214]
[1646772915262,0.97629,2562.1,2561.8,0.00366231]
[1646772915662,0.97629,2562.1,2561.8,1.60023953]
[1646772916306,0.76211254,2561.9,2561.8,0.00340353]
[1646772916511,4.26211254,2561.9,2561.8,0.00340353]
[1646772916706,4.56211254,2561.9,2561.8,0.00340353]
[1646772917606,4.56211254,2561.9,2561.7,0.00327604]
[1646772917806,1.95313,2561.8,2561.7,0.00327604]
[1646772918006,0.24972412,2561.8,2561.7,0.00327604]
[1646772918209,0.54972412,2561.8,2561.7,0.00327604]
[1646772918608,0.54972412,2561.8,2561.6,0.0032761]
[1646772918808,0.24972412,2561.8,2561.6,0.0032761]
[1646772919513,0.24972412,2561.8,2561.3,1.59685219]
[1646772919715,0.97647,2561.7,2561.6,0.00302741]
[1646772919950,1.95294,2561.7,2561.6,0.00302741]
[1646772920752,1.95294,2561.7,2561.3,1.59682496]
[1646772920952,1.95294,2561.7,2561.5,0.00315493]
[1646772921151,1.95294,2561.7,2561.5,1.59997989]
[1646772921356,1.95294,2561.7,2561.5,0.00315493]
[1646772921953,1.95294,2561.7,2561.2,1.59688815]
[1646772922155,1.95294,2561.7,2561.5,0.00315496]
[1646772922554,1.95294,2561.7,2561.5,1.60004311]
[1646772922754,1.95294,2561.7,2561.5,0.00315496]
[1646772923155,1.95294,2561.7,2561.2,1.59687564]
[1646772923356,1.95294,2561.7,2561.5,0.00367184]
[1646772923908,1.95294,2561.7,2561.5,1.60054748]
[1646772924107,1.95294,2561.7,2561.6,1.59687564]
[1646772924509,1.95294,2561.7,2561.5,0.00728453]
[1646772924709,1.95294,2561.7,2561.6,1.59687564]
[1646772924913,1.97789625,2561.7,2561.6,1.59687564]
[1646772925110,1.97789625,2561.7,2561.5,0.00361269]
[1646772925508,1.97789625,2561.7,2561.2,1.59687564]
[1646772925707,1.97789625,2561.7,2561.5,0.00361266]
[1646772926308,3.5,2561.6,2561.5,0.00361266]
[1646772926812,3.5,2561.6,2561.2,1.59687564]
[1646772926813,5.45336,2561.6,2561.2,1.59687564]
[1646772927010,1.95348,2561.5,2561.3,1.59687564]
[1646772927209,1.95348,2561.5,2560.9,3.20415768]
[1646772927210,3.8,2561.4,2561.1,0.01468598]
[1646772927456,3.8,2561.4,2561.2,1.59715067]
[1646772927457,4.77677,2561.4,2561.2,1.59715067]
[1646772927853,5.07677,2561.4,2561.2,1.59715067]
[1646772928254,6.0535498,2561.4,2561.2,1.6006098]
[1646772928454,6.0535498,2561.4,2561.3,1.59715067]
[1646772928455,6.88294138,2561.4,2561.3,1.59715067]
[1646772928655,6.58294138,2561.4,2561.2,0.00345913]
[1646772928855,3.5,2561.3,2561.2,0.00345913]
[1646772930257,3.5,2561.3,2560.9,1.59715067]
[1646772930457,3.5,2561.3,2561.1,0.00314189]
[1646772930458,0.97691,2561.2,2561.1,0.00314189]
[1646772930659,4.47691,2561.2,2561.1,0.00314189]
[1646772930859,4.77691,2561.2,2561.1,0.00314189]
[1646772931057,4.77691,2561.2,2561.1,1.60029256]
[1646772931308,4.77691,2561.2,2561.1,0.00314189]
[1646772931509,4.77691,2561.2,2560.8,1.59733992]
[1646772931510,0.9768985,2561.1,2560.8,1.59733992]
[1646772931706,1.5769,2561.0,2560.9,1.59733992]
[1646772932007,0.6,2561.0,2560.9,1.59733992]
[1646772932212,0.3,2561.0,2560.7,1.59733992]
[1646772932407,0.3,2561.0,2560.8,1.59733992]
[1646772932611,0.3,2561.0,2560.9,1.59733992]
[1646772932806,2.2538,2561.0,2560.9,1.59733992]
[1646772933008,2.5538,2561.0,2560.7,0.00315249]
[1646772933406,2.5538,2561.0,2560.7,1.60049241]
[1646772933608,2.5538,2561.0,2560.8,1.59733992]
[1646772934017,4.47691,2560.9,2560.7,0.00315249]
[1646772934312,4.47691,2560.9,2560.3,0.01352641]
[1646772934313,4.4772331,2560.7,2560.3,0.01352641]
[1646772934510,4.77721,2560.6,2560.3,0.01352641]
[1646772934810,4.77721,2560.6,2559.4,0.71555768]
[1646772934811,1.95461,2560.4,2559.4,0.71555768]
[1646772935055,0.97731,2560.1,2559.5,0.77977553]
[1646772935455,1.27731,2560.1,2559.5,0.77977553]
[1646772936159,11.8,2559.8,2559.2,0.7309144]
[1646772936360,22.16527,2559.7,2558.7,0.71555768]
[1646772936561,13.1652603,2559.5,2558.5,0.71555768]
[1646772936759,13.1652603,2559.5,2558.4,0.71555768]
[1646772936760,0.3878,2559.3,2558.4,0.71555768]
[1646772936957,12.1878,2559.3,2558.6,0.04092649]
[1646772937158,1.86449238,2559.1,2558.6,0.04092649]
[1646772937362,1.86449238,2559.1,2558.2,0.74555768]
[1646772937363,3.3878,2559.0,2558.2,0.74555768]
[1646772937560,0.97792,2558.7,2558.2,0.03]
[1646772937957,0.97795,2558.9,2558.8,0.12742292]
[1646772938159,1.36575,2558.9,2558.2,0.03]
[1646772938356,1.36575,2558.9,2558.2,0.01993036]
[1646772938560,3.5,2558.8,2558.2,0.01993036]
[1646772938814,4.5,2558.8,2558.2,0.01993036]
[1646772939016,0.97792,2558.7,2558.4,0.00153853]
[1646772939412,2.25584,2558.7,2558.4,0.00153853]
[1646772940114,5.86759,2558.6,2558.4,0.00153853]
[1646772940318,6.16759,2558.6,2558.4,0.00153853]
[1646772941213,6.16759,2558.6,2558.2,0.01993036]
[1646772941421,6.16759,2558.6,2558.4,0.0037429]
[1646772941617,8.1232165,2558.6,2558.4,0.0037429]
[1646772941819,9.1232165,2558.6,2558.4,0.0037429]
[1646772942651,9.1232165,2558.6,2558.2,0.01993036]
[1646772942857,9.1232165,2558.6,2557.1,0.3878]
[1646772942858,2.93407,2558.4,2557.1,0.3878]
[1646772943054,4.95643,2557.9,2556.8,0.00728528]
[1646772943255,11.8,2557.5,2556.8,0.00728528]
[1646772943459,3.3878,2557.6,2556.8,0.01457056]
[1646772943460,11.8,2557.3,2556.8,0.01457056]
[1646772943654,0.8706397,2557.0,2556.8,0.01457056]
[1646772943855,0.8706397,2557.0,2555.5,0.96697806]
[1646772943856,5.5,2556.8,2555.5,0.01874492]
[1646772944057,0.97881,2556.6,2556.5,0.03912984]
[1646772944255,1.27881,2556.6,2556.5,0.03912984]
[1646772944658,0.3,2556.6,2556.5,0.01997744]
[1646772944858,3.8,2556.6,2556.5,0.01997744]
[1646772945262,4.8,2556.6,2556.5,0.01997744]
[1646772945465,4.8,2556.6,2556.0,0.01326566]
[1646772945466,5.5,2556.5,2556.0,0.01326566]
[1646772945660,5.59608997,2556.4,2556.0,0.01326566]
[1646772945861,3.8878,2556.3,2555.4,0.01429376]
[1646772946065,0.97895,2556.0,2555.4,0.01429376]
[1646772946324,3.5,2555.9,2555.4,0.01429376]
[1646772946521,3.5,2555.9,2555.1,0.008801]
[1646772946522,5.5,2555.8,2555.1,0.008801]
[1646772946719,0.468,2555.7,2555.1,0.008801]
[1646772946917,3.968,2555.7,2554.7,0.01911392]
[1646772947120,0.65393801,2555.2,2555.1,0.017602]
[1646772947321,0.95393801,2555.2,2555.1,0.017602]
[1646772947521,2.5,2555.1,2554.9,0.00566784]
[1646772947820,3.23781,2555.2,2554.9,0.00566784]
[1646772948218,5.4962,2555.2,2554.9,0.00566784]
[1646772948419,4.51687,2555.2,2554.9,0.00566784]
[1646772948618,4.51687,2555.2,2554.9,0.00364593]
[1646772949019,0.6,2555.2,2554.9,0.00364593]
[1646772949220,0.97891,2555.5,2554.9,0.00364593]
[1646772949423,2.20807,2555.5,2554.9,0.00364593]
[1646772949619,2.20807,2555.5,2554.7,0.01911392]
[1646772950061,0.90870307,2555.4,2554.9,0.00364593]
[1646772950463,0.25,2555.3,2554.9,0.00364593]
[1646772951264,0.25,2555.3,2555.0,0.00363249]
[1646772953566,0.25,2555.3,2555.0,0.00330375]
[1646772954423,0.25,2555.3,2554.7,0.01911392]
[1646772954624,0.25,2555.3,2555.0,0.00327656]
[1646772955224,0.04990676,2555.2,2555.0,0.00327656]
[1646772955828,0.04990676,2555.2,2554.7,0.01911392]
[1646772957027,0.02510676,2555.2,2554.7,0.01911392]
[1646772957230,0.02510676,2555.2,2554.8,1.67886804]
[1646772957462,0.25,2556.1,2555.2,0.00855149]
[1646772957758,1.1488,2556.3,2555.2,0.00855149]
[1646772957958,1.1488,2556.3,2555.8,0.8325722]
[1646772957959,0.25,2556.1,2555.8,0.8325722]
[1646772958158,3.5,2556.7,2555.8,0.8325722]
[1646772958367,4.47861,2556.7,2555.8,0.8325722]
[1646772959463,4.47861,2556.7,2555.9,0.00363268]
[1646772959664,0.97861,2556.7,2555.9,0.00363268]
[1646772959868,0.0036313,2556.8,2555.9,0.00363268]
[1646772960067,0.0036313,2556.8,2555.8,1.17496488]
[1646772960265,0.0036313,2556.8,2555.8,1.47400488]
[1646772960464,0.0036313,2556.8,2556.2,0.81350768]
[1646772960868,0.0036313,2556.8,2555.9,0.00459448]
[1646772960869,0.00363309,2556.8,2555.9,0.00459448]
[1646772961063,0.98222309,2556.8,2555.9,0.00363448]
[1646772961711,0.97859,2556.8,2555.7,0.30096]
[1646772961912,1.13298288,2556.5,2555.4,0.00096]
[1646772962115,0.97877,2556.3,2555.4,0.00096]
[1646772962318,0.97877,2556.3,2555.3,0.13819997]
[1646772963117,0.97877,2556.3,2555.7,0.00140242]
[1646772964317,0.0036366,2556.2,2555.8,0.00363716]
[1646772966558,0.0036366,2556.2,2555.4,0.00096]
[1646772966757,0.0036366,2556.2,2555.8,0.00346619]
[1646772966758,0.00346566,2556.2,2555.8,0.00346619]
[1646772967758,4.2386,2556.6,2555.3,1.13132912]
[1646772967960,0.74344692,2556.5,2555.7,0.91670135]
[1646772968359,0.74344692,2556.5,2555.3,0.78059713]
[1646772968561,0.3878,2556.4,2555.3,0.39279713]
[1646772968809,3.8878,2556.3,2555.3,0.09279713]
[1646772969203,0.00194163,2556.1,2555.3,0.09279713]
[1646772969406,0.97888,2556.0,2555.3,0.09279713]
[1646772969606,0.88823336,2555.9,2555.3,0.09279713]
[1646772969809,4.38823336,2555.9,2555.2,0.00855149]
[1646772970206,1.88823336,2555.9,2555.2,0.00855149]
[1646772970407,1.88823336,2555.9,2555.5,0.00344614]
[1646772970709,0.97897,2555.8,2555.5,0.00344614]
[1646772971515,0.97897,2555.8,2555.5,0.00344611]
[1646772972314,3.5,2555.7,2555.5,0.00344611]
[1646772972557,3.5,2555.7,2555.2,0.00855149]
[1646772972558,17.44062236,2555.7,2555.2,0.00855149]
[1646772972757,17.44062236,2555.7,2555.5,0.00344938]
[1646772972758,18.90862236,2555.7,2555.5,0.00344938]
[1646772973057,15.3,2555.6,2555.5,4.938e-05]
[1646772973257,6.42498421,2555.5,2554.8,0.01226804]
[1646772973455,16.74747,2555.4,2554.8,0.01226804]
[1646772973655,11.8,2555.2,2554.8,0.01226804]
[1646772973857,11.8,2555.0,2554.8,0.01226804]
[1646772974154,15.3,2554.9,2554.8,0.01226804]
[1646772974354,1.0,2554.9,2554.8,0.01226804]
[1646772974555,4.5,2554.9,2554.8,0.01226804]
[1646772974755,1.71513817,2554.9,2554.8,0.01226804]
[1646772975154,0.71513817,2554.9,2554.8,0.01226804]
[1646772975555,16.01513817,2554.9,2554.8,0.01226804]
[1646772975755,17.48313817,2554.9,2554.8,0.01226804]
[1646772976617,18.064914,2554.9,2554.8,0.01226804]
[1646772976818,19.064914,2554.9,2554.8,0.01226804]
[1646772977422,18.064914,2554.9,2554.8,0.01226804]
[1646772978020,11.8,2554.7,2554.6,0.009604]
[1646772978225,15.36010691,2554.7,2554.6,0.009604]
[1646772978623,10.09210691,2554.5,2554.1,0.01033144]
[1646772978821,10.09210691,2554.3,2554.1,0.02953944]
[1646772979024,10.39210691,2554.3,2554.1,0.02953944]
[1646772979223,11.07194691,2554.2,2554.1,0.02953944]
[1646772979423,11.07194691,2554.2,2554.1,3.944e-05]
[1646772979623,1.97984,2554.2,2554.1,3.944e-05]
[1646772979821,0.97984,2554.2,2554.1,3.944e-05]
[1646772980461,1.27984,2554.2,2554.1,3.944e-05]
[1646772981062,13.07984,2554.2,2554.1,3.944e-05]
[1646772981259,2.27984,2554.2,2554.1,3.944e-05]
[1646772981666,13.07984,2554.2,2554.1,3.944e-05]
[1646772981861,14.54784,2554.2,2554.1,3.944e-05]
[1646772982161,15.12390248,2554.2,2554.1,3.944e-05]
[1646772983463,3.32390248,2554.2,2554.1,3.944e-05]
[1646772983717,2.32390248,2554.2,2554.1,3.944e-05]
[1646772983915,3.32390248,2554.2,2554.1,3.944e-05]
[1646772984516,4.03024804,2554.2,2554.1,3.944e-05]
[1646772985321,4.03024804,2554.2,2554.0,0.00360365]
[1646772985721,4.13890135,2554.2,2553.9,0.01375464]
[1646772985923,4.13890135,2554.2,2554.0,0.00337127]
[1646772986323,3.43255579,2554.2,2554.0,0.00337127]
[1646772987123,0.68471579,2554.2,2554.0,0.00132144]
[1646772987971,0.68471579,2554.2,2553.9,0.01375464]
[1646772988373,1.66427579,2554.2,2554.0,0.00132144]
[1646772989270,1.66427579,2554.2,2553.9,0.01375464]